fUSD/lending_fUSD_20250125
["ID","MTS","AMOUNT","RATE_DAILY","PERIOD"]
[350384940,1737820246445,-500.0,0.00016985,2]
[350384941,1737820246456,-500.0,0.00016985,2]
[350384942,1737820246467,-500.0,0.00016985,2]
[350384943,1737820246478,-234.99834506,0.00016985,2]
[350384944,1737820246489,-500.0,0.00016985,2]
[350384945,1737820246500,-334.65,0.00016985,2]
[350384946,1737820246511,-500.0,0.00016985,2]
[350384947,1737820246522,-500.0,0.00016985,2]
[350384948,1737820246533,-500.0,0.00016985,2]
[350384949,1737820246545,-500.0,0.00016985,2]
[350384950,1737820246556,-500.0,0.00016985,2]
[350384951,1737820246567,-500.0,0.00016985,2]
[350384952,1737820246578,-500.0,0.00016985,2]
[350384953,1737820246589,-500.0,0.00016985,2]
[350384954,1737820246600,-500.0,0.00016985,2]
[350384955,1737820246611,-218.65,0.00016985,2]
[350384956,1737820246622,-500.0,0.00016985,2]
[350384957,1737820246633,-500.0,0.00016985,2]
[350384958,1737820246647,-500.0,0.00016985,2]
[350384959,1737820246658,-500.0,0.00016985,2]
[350384960,1737820246669,-500.0,0.00016985,2]
[350384961,1737820246681,-500.0,0.00016985,2]
[350384962,1737820246691,-500.0,0.00016985,2]
[350384963,1737820246702,-500.0,0.00016985,2]
[350384964,1737820246715,-403.26,0.00016985,2]
[350384965,1737820246727,-500.0,0.00016985,2]
[350384966,1737820246738,-367.06969773,0.00016985,2]
[350384967,1737820246750,-500.0,0.00016985,2]
[350384968,1737820246761,-500.0,0.00016985,2]
[350384969,1737820246772,-500.0,0.00016985,2]
[350384970,1737820246783,-500.0,0.00016985,2]
[350384971,1737820246794,-500.0,0.00016985,2]
[350384972,1737820246805,-16705.7,0.00016985,2]
[350384973,1737820246817,-693.64,0.00016985,2]
[350384974,1737820246828,-500.0,0.00016985,2]
[350384975,1737820246839,-500.0,0.00016985,2]
[350384976,1737820246856,-500.0,0.00016985,2]
[350384977,1737820246867,-500.0,0.00016985,2]
[350384978,1737820246878,-500.0,0.00016985,2]
[350384979,1737820246889,-519.24074904,0.00016985,2]
[350384980,1737820246900,-500.0,0.00016985,2]
[350384981,1737820246912,-500.0,0.00016985,2]
[350384982,1737820246924,-500.0,0.00016985,2]
[350384983,1737820246934,-1000.0,0.00016985,2]
[350384984,1737820246945,-611.48387369,0.00016985,2]
[350384985,1737820246955,-500.0,0.00016985,2]
[350384986,1737820246966,-500.0,0.00016985,2]
[350384987,1737820246977,-500.0,0.00016985,2]
[350384988,1737820246987,-500.0,0.00016985,2]
[350384989,1737820246998,-500.0,0.00016985,2]
[350384990,1737820247008,-500.0,0.00016985,2]
[350384991,1737820247020,-500.0,0.00016985,2]
[350384992,1737820247032,-500.0,0.00016985,2]
[350384993,1737820247045,-500.0,0.00016985,2]
[350384994,1737820247056,-500.0,0.00016985,2]
[350384995,1737820247067,-500.0,0.00016985,2]
[350384996,1737820247078,-500.0,0.00016986,2]
[350384997,1737820247089,-500.0,0.00016986,2]
[350384998,1737820247099,-557.33764225,0.00016986,2]
[350384999,1737820247109,-500.0,0.00016986,2]
[350385000,1737820247119,-500.0,0.00016986,2]
[350385001,1737820247128,-468.73960977,0.00016986,2]
[350385002,1737820247138,-500.0,0.00016986,2]
[350385003,1737820247148,-500.0,0.00016986,2]
[350385004,1737820247157,-500.0,0.00016986,2]
[350385005,1737820247166,-500.0,0.00016986,2]
[350385006,1737820247176,-500.0,0.00016986,2]
[350385007,1737820247185,-500.0,0.00016986,2]
[350385008,1737820247194,-176.87646661,0.00016986,2]
[350385009,1737820247204,-500.0,0.00016986,2]
[350385010,1737820247216,-500.0,0.00016986,2]
[350385011,1737820247225,-631.85619493,0.00016986,2]
[350385012,1737820247235,-500.0,0.00016986,2]
[350385013,1737820247245,-500.0,0.00016986,2]
[350385014,1737820247255,-500.0,0.00016986,2]
[350385015,1737820247264,-500.0,0.00016986,2]
[350385016,1737820247273,-185.74,0.00016986,2]
[350385017,1737820247282,-500.0,0.00016986,2]
[350385018,1737820247293,-500.0,0.00016986,2]
[350385019,1737820247302,-500.0,0.00016986,2]
[350385020,1737820247313,-500.0,0.00016986,2]
[350385021,1737820247323,-500.0,0.00016986,2]
[350385022,1737820247332,-500.0,0.00016986,2]
[350385023,1737820247341,-500.0,0.00016986,2]
[350385024,1737820247351,-500.0,0.00016986,2]
[350385025,1737820247360,-500.0,0.00016986,2]
[350385026,1737820247370,-500.0,0.00016986,2]
[350385027,1737820247381,-500.0,0.00016986,2]
[350385028,1737820247391,-500.0,0.00016986,2]
[350385029,1737820247401,-500.0,0.00016986,2]
[350385030,1737820247411,-500.0,0.00016986,2]
[350385031,1737820247421,-500.0,0.00016986,2]
[350385032,1737820247432,-500.0,0.00016986,2]
[350385033,1737820247442,-349.12,0.00016986,2]
[350385034,1737820247452,-694.18,0.00016986,2]
[350385035,1737820247462,-500.0,0.00016986,2]
[350385036,1737820247472,-500.0,0.00016986,2]
[350385037,1737820247481,-500.0,0.00016986,2]
[350385038,1737820247491,-500.0,0.00016986,2]
[350385039,1737820247501,-500.0,0.00016986,2]
[350385040,1737820247510,-472.02,0.00016986,2]
[350385041,1737820247520,-269.82068775,0.00016986,2]
[350385042,1737820247530,-553.09,0.00016986,2]
[350385043,1737820247539,-448.528874,0.00016986,2]
[350385044,1737820247549,-246.87596057,0.00016986,2]
[350385045,1737820247559,-500.0,0.00016986,2]
[350385046,1737820247810,-500.0,0.00016986,2]
[350385047,1737820247820,-500.0,0.00016986,2]
[350385048,1737820247830,-600.0,0.00017,2]
[350385049,1737820247840,-834.36335704,0.00017072,2]
[350385050,1737820247850,-500.0,0.00017091,2]
[350385051,1737820247859,-673.97,0.00017092,2]
[350385052,1737820247868,-548.82,0.00017092,2]
[350385053,1737820247878,-500.0,0.00017092,2]
[350385054,1737820247887,-280.8,0.00017092,2]
[350385055,1737820247897,-500.0,0.00017092,2]
[350385056,1737820247906,-500.0,0.00017121,2]
[350385057,1737820247916,-500.0,0.00017121,2]
[350385058,1737820247926,-500.0,0.00017121,2]
[350385059,1737820247936,-500.0,0.00017121,2]
[350385060,1737820247946,-500.0,0.00017121,2]
[350385061,1737820247956,-500.0,0.00017121,2]
[350385062,1737820247965,-500.0,0.00017121,2]
[350385063,1737820247976,-500.0,0.00017121,2]
[350385064,1737820247985,-500.0,0.00017121,2]
[350385065,1737820247995,-500.0,0.00017121,2]
[350385066,1737820248005,-500.0,0.00017121,2]
[350385067,1737820248016,-500.0,0.00017121,2]
[350385068,1737820248026,-500.0,0.00017121,2]
[350385069,1737820248035,-639.37,0.00017121,2]
[350385070,1737820248046,-500.0,0.00017121,2]
[350385071,1737820248056,-601.51,0.00017121,2]
[350385072,1737820248066,-500.0,0.00017121,2]
[350385073,1737820248076,-416.75,0.00017121,2]
[350385074,1737820248086,-500.0,0.00017121,2]
[350385075,1737820248096,-500.0,0.00017121,2]
[350385076,1737820248106,-500.0,0.00017121,2]
[350385077,1737820248115,-500.0,0.00017121,2]
[350385078,1737820248125,-500.0,0.00017122,2]
[350385079,1737820248134,-500.0,0.00017122,2]
[350385080,1737820248144,-500.0,0.00017122,2]
[350385081,1737820248154,-500.0,0.00017122,2]
[350385082,1737820248163,-161.30787903,0.00017122,2]
[350385083,1737820248173,-500.0,0.00017122,2]
[350385084,1737820248182,-500.0,0.00017122,2]
[350385085,1737820248192,-500.0,0.00017122,2]
[350385086,1737820248201,-500.0,0.00017122,2]
[350385087,1737820248212,-500.0,0.00017122,2]
[350385088,1737820248225,-500.0,0.00017122,2]
[350385089,1737820248235,-500.0,0.00017122,2]
[350385090,1737820248244,-500.0,0.00017122,2]
[350385091,1737820248254,-500.0,0.00017122,2]
[350385092,1737820248263,-500.0,0.00017122,2]
[350385093,1737820248272,-500.0,0.00017122,2]
[350385094,1737820248282,-500.0,0.00017122,2]
[350385095,1737820248291,-500.0,0.00017122,2]
[350385096,1737820248304,-500.0,0.00017122,2]
[350385097,1737820248314,-500.0,0.00017122,2]
[350385098,1737820248324,-500.0,0.00017122,2]
[350385099,1737820248334,-500.0,0.00017122,2]
[350385100,1737820248344,-273.44,0.00017122,2]
[350385101,1737820248354,-500.0,0.00017122,2]
[350385102,1737820248363,-248.96,0.00017122,2]
[350385103,1737820248374,-16705.7,0.00017122,2]
[350385104,1737820248384,-693.64,0.00017122,2]
[350385105,1737820248394,-500.0,0.00017122,2]
[350385106,1737820248403,-403.54956804,0.00017122,2]
[350385107,1737820248412,-500.0,0.00017122,2]
[350385108,1737820248422,-1000.0,0.00017122,2]
[350385109,1737820248431,-500.0,0.00017122,2]
[350385110,1737820248440,-227.24,0.00017122,2]
[350385111,1737820248449,-736.18,0.00017122,2]
[350385112,1737820248459,-500.0,0.00017122,2]
[350385113,1737820248468,-500.0,0.00017122,2]
[350385114,1737820248477,-500.0,0.00017122,2]
[350385115,1737820248487,-500.0,0.00017122,2]
[350385116,1737820248496,-241.97471849,0.00017122,2]
[350385117,1737820248505,-500.0,0.00017122,2]
[350385118,1737820248515,-500.0,0.00017122,2]
[350385119,1737820248525,-500.0,0.00017122,2]
[350385120,1737820248534,-500.0,0.00017123,2]
[350385121,1737820248543,-500.0,0.00017123,2]
[350385122,1737820248553,-500.0,0.00017123,2]
[350385123,1737820248562,-500.0,0.00017123,2]
[350385124,1737820248571,-500.0,0.00017123,2]
[350385125,1737820248581,-500.0,0.00017123,2]
[350385126,1737820248590,-500.0,0.00017123,2]
[350385127,1737820248600,-500.0,0.00017123,2]
[350385128,1737820248609,-500.0,0.00017123,2]
[350385129,1737820248619,-500.0,0.00017123,2]
[350385130,1737820248628,-500.0,0.00017123,2]
[350385131,1737820248637,-276.76518783,0.00017123,2]
[350385132,1737820248647,-586.92694555,0.00017123,2]
[350385133,1737820248656,-500.0,0.00017123,2]
[350385134,1737820248665,-216.01078184,0.00017123,2]
[350385135,1737820248675,-500.0,0.00017123,2]
[350385136,1737820248686,-500.0,0.00017123,2]
[350385137,1737820248696,-500.0,0.00017123,2]
[350385138,1737820248706,-290.12307022,0.00017123,2]
[350385139,1737820248715,-500.0,0.00017123,2]
[350385140,1737820248724,-500.0,0.00017123,2]
[350385141,1737820248733,-500.0,0.00017123,2]
[350385142,1737820248742,-500.0,0.00017123,2]
[350385143,1737820248752,-500.0,0.00017123,2]
[350385144,1737820248761,-500.0,0.00017123,2]
[350385145,1737820248771,-694.18,0.00017123,2]
[350385146,1737820248780,-500.0,0.00017123,2]
[350385147,1737820248790,-500.0,0.00017123,2]
[350385148,1737820248800,-500.0,0.00017123,2]
[350385149,1737820248811,-500.0,0.00017123,2]
[350385150,1737820248820,-500.0,0.00017123,2]
[350385151,1737820248831,-553.09,0.00017123,2]
[350385152,1737820248841,-500.0,0.00017123,2]
[350385153,1737820248850,-500.0,0.00017123,2]
[350385154,1737820248860,-500.0,0.00017123,2]
[350385155,1737820248869,-8554.50470761,0.0001713,2]
[350385156,1737820248879,-29907.4793,0.00017157,2]
[350385157,1737820248888,-3146.5,0.00017157,2]
[350385158,1737820248898,-673.97,0.00017229,2]
[350385159,1737820248908,-500.0,0.00017229,2]
[350385160,1737820248917,-500.0,0.00017229,2]
[350385161,1737820248926,-834.36335704,0.00017245,2]
[350385162,1737820248936,-2000.0,0.00017257,2]
[350385163,1737820248946,-200.0,0.00017257,2]
[350385164,1737820248956,-2000.0,0.00017257,2]
[350385165,1737820248965,-200.0,0.00017257,2]
[350385166,1737820248975,-3000.0,0.00017257,2]
[350385167,1737820248985,-500.0,0.00017258,2]
[350385168,1737820248996,-500.0,0.00017258,2]
[350385169,1737820249006,-541.86,0.00017258,2]
[350385170,1737820249015,-500.0,0.00017258,2]
[350385171,1737820249026,-500.0,0.00017258,2]
[350385172,1737820249036,-500.0,0.00017258,2]
[350385173,1737820249045,-500.0,0.00017258,2]
[350385174,1737820249055,-500.0,0.00017258,2]
[350385175,1737820249065,-500.0,0.00017258,2]
[350385176,1737820249075,-500.0,0.00017258,2]
[350385177,1737820249084,-500.0,0.00017258,2]
[350385178,1737820249094,-500.0,0.00017258,2]
[350385179,1737820249104,-500.0,0.00017258,2]
[350385180,1737820249113,-500.0,0.00017258,2]
[350385181,1737820249124,-500.0,0.00017258,2]
[350385182,1737820249133,-500.0,0.00017258,2]
[350385183,1737820249144,-500.0,0.00017258,2]
[350385184,1737820249154,-215.75,0.00017258,2]
[350385185,1737820249164,-307.86,0.00017258,2]
[350385186,1737820249175,-155.18233139,0.00017259,2]
[350385187,1737820249184,-500.0,0.00017259,2]
[350385188,1737820249194,-500.0,0.00017259,2]
[350385189,1737820249203,-500.0,0.00017259,2]
[350385190,1737820249213,-500.0,0.00017259,2]
[350385191,1737820249226,-500.0,0.00017259,2]
[350385192,1737820249235,-500.0,0.00017259,2]
[350385193,1737820249244,-500.0,0.00017259,2]
[350385194,1737820249253,-500.0,0.00017259,2]
[350385195,1737820249265,-500.0,0.00017259,2]
[350385196,1737820249274,-500.0,0.00017259,2]
[350385197,1737820249284,-500.0,0.00017259,2]
[350385198,1737820249295,-500.0,0.00017259,2]
[350385199,1737820249304,-500.0,0.00017259,2]
[350385200,1737820249314,-500.0,0.00017259,2]
[350385201,1737820249324,-500.0,0.00017259,2]
[350385202,1737820249333,-500.0,0.00017259,2]
[350385203,1737820249343,-500.0,0.00017259,2]
[350385204,1737820249352,-178.55,0.00017259,2]
[350385205,1737820249362,-563.65,0.00017259,2]
[350385206,1737820249372,-500.0,0.00017259,2]
[350385207,1737820249382,-16705.7,0.00017259,2]
[350385208,1737820249391,-693.64,0.00017259,2]
[350385209,1737820249401,-500.0,0.00017259,2]
[350385210,1737820249410,-500.0,0.00017259,2]
[350385211,1737820249419,-500.0,0.00017259,2]
[350385212,1737820249429,-607.88,0.00017259,2]
[350385213,1737820249438,-500.0,0.00017259,2]
[350385214,1737820249447,-500.0,0.00017259,2]
[350385215,1737820249456,-500.0,0.00017259,2]
[350385216,1737820249466,-563.89,0.00017259,2]
[350385217,1737820249476,-500.0,0.0001726,2]
[350385218,1737820249485,-500.0,0.0001726,2]
[350385219,1737820249494,-500.0,0.0001726,2]
[350385220,1737820249503,-500.0,0.0001726,2]
[350385221,1737820249512,-500.0,0.0001726,2]
[350385222,1737820249522,-535.38,0.0001726,2]
[350385223,1737820249532,-500.0,0.0001726,2]
[350385224,1737820249541,-500.0,0.0001726,2]
[350385225,1737820249550,-402.9,0.0001726,2]
[350385226,1737820249560,-500.0,0.0001726,2]
[350385227,1737820249570,-233.92,0.0001726,2]
[350385228,1737820249579,-500.0,0.0001726,2]
[350385229,1737820249589,-500.0,0.0001726,2]
[350385230,1737820249599,-500.0,0.0001726,2]
[350385231,1737820249609,-159.22,0.0001726,2]
[350385232,1737820249618,-500.0,0.0001726,2]
[350385233,1737820249628,-694.18,0.0001726,2]
[350385234,1737820249637,-500.0,0.0001726,2]
[350385235,1737820249647,-500.0,0.0001726,2]
[350385236,1737820249657,-500.0,0.0001726,2]
[350385237,1737820249667,-500.0,0.0001726,2]
[350385238,1737820249677,-500.0,0.0001726,2]
[350385239,1737820249686,-553.09,0.0001726,2]
[350385240,1737820249696,-500.0,0.0001726,2]
[350385241,1737820249707,-293.04,0.0001726,2]
[350385242,1737820249717,-500.0,0.0001726,2]
[350385243,1737820249726,-243.27,0.00017345,2]
[350385244,1737820249736,-673.97,0.00017366,2]
[350385245,1737820249746,-500.0,0.00017366,2]
[350385246,1737820249755,-500.0,0.00017366,2]
[350385247,1737820249766,-500.0,0.00017395,2]
[350385248,1737820249775,-355.39239707,0.00017395,2]
[350385249,1737820249785,-500.0,0.00017395,2]
[350385250,1737820249794,-500.0,0.00017395,2]
[350385251,1737820249804,-159.29,0.00017395,2]
[350385252,1737820249814,-500.0,0.00017395,2]
[350385253,1737820249823,-500.0,0.00017395,2]
[350385254,1737820249833,-500.0,0.00017395,2]
[350385255,1737820249843,-500.0,0.00017395,2]
[350385256,1737820249853,-500.0,0.00017395,2]
[350385257,1737820249863,-500.0,0.00017395,2]
[350385258,1737820249873,-284.62735671,0.00017395,2]
[350385259,1737820249883,-500.0,0.00017396,2]
[350385260,1737820249892,-500.0,0.00017396,2]
[350385261,1737820249903,-500.0,0.00017396,2]
[350385262,1737820249913,-500.0,0.00017396,2]
[350385263,1737820249922,-500.0,0.00017396,2]
[350385264,1737820249932,-500.0,0.00017396,2]
[350385265,1737820249941,-500.0,0.00017396,2]
[350385266,1737820249951,-411.29517323,0.00017396,2]
[350385267,1737820249960,-431.64,0.00017396,2]
[350385268,1737820249970,-457.4,0.00017396,2]
[350385269,1737820249979,-259.12,0.00017396,2]
[350385270,1737820249989,-631.46,0.00017396,2]
[350385271,1737820249998,-294.52,0.00017396,2]
[350385272,1737820250008,-168.9,0.00017396,2]
[350385273,1737820250018,-16705.7,0.00017396,2]
[350385274,1737820250027,-693.64,0.00017396,2]
[350385275,1737820250037,-387.29,0.00017396,2]
[350385276,1737820250047,-457.32,0.00017396,2]
[350385277,1737820250056,-500.0,0.00017396,2]
[350385278,1737820250065,-500.0,0.00017396,2]
[350385279,1737820250075,-500.0,0.00017397,2]
[350385280,1737820250085,-500.0,0.00017397,2]
[350385281,1737820250095,-500.0,0.00017397,2]
[350385282,1737820250104,-500.0,0.00017397,2]
[350385283,1737820250114,-500.0,0.00017397,2]
[350385284,1737820250124,-500.0,0.00017397,2]
[350385285,1737820250133,-500.0,0.00017397,2]
[350385286,1737820250142,-500.0,0.00017397,2]
[350385287,1737820250154,-500.0,0.00017397,2]
[350385288,1737820250164,-694.18,0.00017397,2]
[350385289,1737820250174,-500.0,0.00017397,2]
[350385290,1737820250183,-500.0,0.00017397,2]
[350385291,1737820250193,-500.0,0.00017397,2]
[350385292,1737820250203,-363.08,0.00017397,2]
[350385293,1737820250216,-500.0,0.00017397,2]
[350385294,1737820250228,-553.09,0.00017397,2]
[350385295,1737820250238,-500.0,0.00017397,2]
[350385296,1737820250248,-500.0,0.00017397,2]
[350385297,1737820250259,-834.36335704,0.00017417,2]
[350385298,1737820250268,-1718.94988334,0.0001743,2]
[350385299,1737820250278,-200.0,0.0001743,2]
[350385300,1737820250287,-2000.0,0.0001743,2]
[350385301,1737820250299,-200.0,0.0001743,2]
[350385302,1737820250309,-673.97,0.00017503,2]
[350385303,1737820250319,-500.0,0.00017503,2]
[350385304,1737820250328,-500.0,0.00017503,2]
[350385305,1737820250338,-8554.50470761,0.00017525,2]
[350385306,1737820250347,-500.0,0.00017532,2]
[350385307,1737820250357,-500.0,0.00017532,2]
[350385308,1737820250367,-500.0,0.00017532,2]
[350385309,1737820250378,-500.0,0.00017532,2]
[350385310,1737820250388,-500.0,0.00017532,2]
[350385311,1737820250399,-500.0,0.00017532,2]
[350385312,1737820250408,-408.34870629,0.00017532,2]
[350385313,1737820250418,-500.0,0.00017532,2]
[350385314,1737820250427,-500.0,0.00017533,2]
[350385315,1737820250437,-500.0,0.00017533,2]
[350385316,1737820250446,-500.0,0.00017533,2]
[350385317,1737820250456,-500.0,0.00017533,2]
[350385318,1737820250466,-500.0,0.00017533,2]
[350385319,1737820250476,-500.0,0.00017533,2]
[350385320,1737820250485,-500.0,0.00017533,2]
[350385321,1737820250495,-16705.7,0.00017533,2]
[350385322,1737820250504,-693.64,0.00017533,2]
[350385323,1737820250515,-500.0,0.00017533,2]
[350385324,1737820250524,-506.4,0.00017533,2]
[350385325,1737820250533,-287.53,0.00017534,2]
[350385326,1737820250543,-471.34,0.00017534,2]
[350385327,1737820250552,-601.28,0.00017534,2]
[350385328,1737820250562,-500.0,0.00017534,2]
[350385329,1737820250572,-500.0,0.00017534,2]
[350385330,1737820250581,-159.62766287,0.00017534,2]
[350385331,1737820250590,-500.0,0.00017534,2]
[350385332,1737820250599,-500.0,0.00017534,2]
[350385333,1737820250608,-694.18,0.00017534,2]
[350385334,1737820250618,-500.0,0.00017534,2]
[350385335,1737820250627,-500.0,0.00017534,2]
[350385336,1737820250636,-500.0,0.00017534,2]
[350385337,1737820250645,-500.0,0.00017534,2]
[350385338,1737820250655,-553.09,0.00017534,2]
[350385339,1737820250664,-500.0,0.00017534,2]
[350385340,1737820250673,-500.0,0.00017534,2]
[350385341,1737820250682,-672.119728,0.00017571,2]
[350385342,1737820250693,-834.36335704,0.0001759,2]
[350385343,1737820250702,-200.0,0.00017604,2]
[350385344,1737820250712,-200.0,0.00017604,2]
[350385345,1737820250721,-673.97,0.0001764,2]
[350385346,1737820250730,-500.0,0.0001764,2]
[350385347,1737820250739,-500.0,0.0001764,2]
[350385348,1737820250748,-500.0,0.00017669,2]
[350385349,1737820250758,-736.18,0.00017669,2]
[350385350,1737820250769,-500.0,0.00017669,2]
[350385351,1737820250779,-500.0,0.00017669,2]
[350385352,1737820250788,-500.0,0.00017669,2]
[350385353,1737820250798,-500.0,0.00017669,2]
[350385354,1737820250808,-500.0,0.00017669,2]
[350385355,1737820250818,-500.0,0.0001767,2]
[350385356,1737820250827,-225.35,0.0001767,2]
[350385357,1737820250837,-327.15,0.0001767,2]
[350385358,1737820250846,-309.7,0.0001767,2]
[350385359,1737820250856,-16705.7,0.0001767,2]
[350385360,1737820250865,-693.64,0.0001767,2]
[350385361,1737820250876,-500.0,0.0001767,2]
[350385362,1737820250885,-443.44,0.00017671,2]
[350385363,1737820250895,-500.0,0.00017671,2]
[350385364,1737820250905,-500.0,0.00017671,2]
[350385365,1737820250914,-500.0,0.00017671,2]
[350385366,1737820250924,-694.18,0.00017671,2]
[350385367,1737820250933,-500.0,0.00017671,2]
[350385368,1737820250943,-500.0,0.00017671,2]
[350385369,1737820250953,-500.0,0.00017671,2]
[350385370,1737820250964,-500.0,0.00017671,2]
[350385371,1737820250974,-553.09,0.00017671,2]
[350385372,1737820250984,-500.0,0.00017671,2]
[350385373,1737820250993,-500.0,0.00017671,2]
[350385374,1737820251003,-180.28308189,0.00017708,2]
[350385375,1737820251138,-1279.95,0.00017739,2]
[350385376,1737820251148,-834.36335704,0.00017762,2]
[350385377,1737820251157,-673.97,0.00017777,2]
[350385378,1737820251167,-500.0,0.00017777,2]
[350385379,1737820251176,-500.0,0.00017777,2]
[350385380,1737820251185,-200.0,0.0001778,2]
[350385381,1737820251194,-500.0,0.00017806,2]
[350385382,1737820251204,-500.0,0.00017806,2]
[350385383,1737820251220,-500.0,0.00017806,2]
[350385384,1737820251229,-500.0,0.00017806,2]
[350385385,1737820251239,-346.93,0.00017806,2]
[350385386,1737820251248,-500.0,0.00017806,2]
[350385387,1737820251259,-206.97,0.00017807,2]
[350385388,1737820251268,-16705.7,0.00017807,2]
[350385389,1737820251277,-693.64,0.00017807,2]
[350385390,1737820251288,-500.0,0.00017807,2]
[350385391,1737820251298,-500.0,0.00017808,2]
[350385392,1737820251308,-500.0,0.00017808,2]
[350385393,1737820251319,-500.0,0.00017808,2]
[350385394,1737820251328,-694.18,0.00017808,2]
[350385395,1737820251337,-500.0,0.00017808,2]
[350385396,1737820251347,-500.0,0.00017808,2]
[350385397,1737820251356,-500.0,0.00017808,2]
[350385398,1737820251365,-500.0,0.00017808,2]
[350385399,1737820251375,-553.09,0.00017808,2]
[350385400,1737820251386,-194.46,0.00017808,2]
[350385401,1737820251395,-500.0,0.00017808,2]
[350385402,1737820251404,-700.0,0.000179,6]
[350385403,1737820251414,-673.97,0.00017914,2]
[350385404,1737820251423,-500.0,0.00017914,2]
[350385405,1737820251432,-500.0,0.00017914,2]
[350385406,1737820251444,-8554.50470761,0.00017921,2]
[350385407,1737820251453,-834.36335704,0.00017934,2]
[350385408,1737820251463,-500.0,0.00017943,2]
[350385409,1737820251473,-500.0,0.00017943,2]
[350385410,1737820251483,-500.0,0.00017943,2]
[350385411,1737820251492,-500.0,0.00017943,2]
[350385412,1737820251502,-500.0,0.00017943,2]
[350385413,1737820251511,-16705.7,0.00017944,2]
[350385414,1737820251520,-693.64,0.00017944,2]
[350385415,1737820251530,-500.0,0.00017944,2]
[350385416,1737820251539,-500.0,0.00017945,2]
[350385417,1737820251548,-500.0,0.00017945,2]
[350385418,1737820251558,-500.0,0.00017945,2]
[350385419,1737820251567,-694.18,0.00017945,2]
[350385420,1737820251577,-500.0,0.00017945,2]
[350385421,1737820251587,-500.0,0.00017945,2]
[350385422,1737820251597,-500.0,0.00017945,2]
[350385423,1737820251606,-529.05,0.00017945,2]
[350385424,1737820251615,-553.09,0.00017945,2]
[350385425,1737820251624,-500.0,0.00017945,2]
[350385426,1737820251634,-200.0,0.00017958,2]
[350385427,1737820251643,-249.0,0.00018,2]
[350385428,1737820251652,-15114.15056323,0.00018,2]
[350385429,1737820251662,-805.07035246,0.00018,2]
[350385430,1737820251671,-1659.206,0.00018009,2]
[350385431,1737820251681,-673.97,0.00018051,2]
[350385432,1737820251690,-523.22,0.00018051,2]
[350385433,1737820251700,-500.0,0.00018051,2]
[350385434,1737820251709,-500.0,0.0001808,2]
[350385435,1737820251719,-500.0,0.0001808,2]
[350385436,1737820251729,-533.4,0.0001808,2]
[350385437,1737820251738,-500.0,0.0001808,2]
[350385438,1737820251748,-547.17205252,0.0001808,2]
[350385439,1737820251757,-16705.7,0.00018081,2]